[Event "*** SCC Grand Prix: Titled Tuesday Blitz"]
[Site "Chess.com"]
[Date "2020.10.13"]
[Round "2"]
[White "akanga001"]
[Black "Zmeeed63"]
[Result "0-1"]
[WhiteElo "1840"]
[BlackElo "2355"]
[TimeControl "180+1"]
[EndTime "10:14:41 PDT"]
[Termination "Zmeeed63 won by resignation"]

1. d4 {[%clk 0:03:00.9]} 1... d5 {[%clk 0:02:59.8]} 2. c4 {[%clk 0:03:01.1]}
2... e6 {[%clk 0:03:00.2]} 3. Nc3 {[%clk 0:03:00.6]} 3... c6 {[%clk 0:03:00.6]}
4. cxd5 {[%clk 0:03:00.2]} 4... exd5 {[%clk 0:03:00.7]} 5. Bf4 {[%clk
0:02:59.6]} 5... Bd6 {[%clk 0:03:00.3]} 6. Bg3 {[%clk 0:02:58]} 6... Nf6 {[%clk
0:02:58.5]} 7. e3 {[%clk 0:02:57.9]} 7... Bf5 {[%clk 0:02:57.8]} 8. Bd3 {[%clk
0:02:56.7]} 8... Bxd3 {[%clk 0:02:57.9]} 9. Qxd3 {[%clk 0:02:57.6]} 9... O-O
{[%clk 0:02:58.5]} 10. Nge2 {[%clk 0:02:56]} 10... Re8 {[%clk 0:02:58]} 11.
O-O-O {[%clk 0:02:55]} 11... Na6 {[%clk 0:02:44.5]} 12. Kb1 {[%clk 0:02:47.4]}
12... Ng4 {[%clk 0:02:30.4]} 13. Rdf1 {[%clk 0:02:35.8]} 13... Nb4 {[%clk
0:02:25]} 14. Qd1 {[%clk 0:02:34.5]} 14... a5 {[%clk 0:02:22.3]} 15. a3 {[%clk
0:02:33.6]} 15... Na6 {[%clk 0:02:22.1]} 16. Nf4 {[%clk 0:02:29.5]} 16... Nf6
{[%clk 0:02:16.5]} 17. Nd3 {[%clk 0:02:28.9]} 17... b5 {[%clk 0:02:09.8]} 18.
Bxd6 {[%clk 0:02:24.7]} 18... Qxd6 {[%clk 0:02:09.4]} 19. Ne5 {[%clk 0:02:25.6]}
19... b4 {[%clk 0:02:08.9]} 20. axb4 {[%clk 0:02:22.9]} 20... axb4 {[%clk
0:02:09.8]} 21. Na4 {[%clk 0:02:13.1]} 21... c5 {[%clk 0:02:02.7]} 22. Nd3
{[%clk 0:02:01.4]} 22... c4 {[%clk 0:01:45.2]} 23. Ndc5 {[%clk 0:02:01.2]} 23...
b3 {[%clk 0:01:40.6]} 24. Kc1 {[%clk 0:01:54]} 24... Nxc5 {[%clk 0:01:36.6]} 25.
dxc5 {[%clk 0:01:52.3]} 25... Qe5 {[%clk 0:01:21.8]} 26. Nc3 {[%clk 0:01:50.9]}
26... Ra1+ {[%clk 0:01:21.5]} 27. Nb1 {[%clk 0:01:51.1]} 27... Qf5 {[%clk
0:01:16.4]} 28. Kd2 {[%clk 0:01:43.3]} 28... Qd3+ {[%clk 0:01:15.5]} 29. Ke1
{[%clk 0:01:42.7]} 29... Rxb1 {[%clk 0:01:16]} 0-1

[Event "*** SCC Grand Prix: Titled Tuesday Blitz"]
[Site "Chess.com"]
[Date "2020.10.13"]
[Round "2"]
[White "Arjun2002"]
[Black "annazero"]
[Result "0-1"]
[WhiteElo "2656"]
[BlackElo "2356"]
[TimeControl "180+1"]
[EndTime "10:14:43 PDT"]
[Termination "annazero won by resignation"]

1. e4 {[%clk 0:03:00.9]} 1... c6 {[%clk 0:02:59.9]} 2. d4 {[%clk 0:02:58.7]}
2... d5 {[%clk 0:03:00.8]} 3. e5 {[%clk 0:02:58.9]} 3... c5 {[%clk 0:02:59.9]}
4. dxc5 {[%clk 0:02:58.6]} 4... e6 {[%clk 0:02:56.6]} 5. Nf3 {[%clk 0:02:55.4]}
5... Bxc5 {[%clk 0:02:54.7]} 6. Bd3 {[%clk 0:02:55.5]} 6... Ne7 {[%clk 0:02:54]}
7. O-O {[%clk 0:02:53.8]} 7... Ng6 {[%clk 0:02:53.3]} 8. a3 {[%clk 0:02:52.6]}
8... O-O {[%clk 0:02:50.4]} 9. Ng5 {[%clk 0:02:36.9]} 9... Be7 {[%clk
0:02:45.1]} 10. Qh5 {[%clk 0:02:22]} 10... Bxg5 {[%clk 0:02:44.6]} 11. Bxg5
{[%clk 0:02:22.1]} 11... Qb6 {[%clk 0:02:42]} 12. Nd2 {[%clk 0:02:14.5]} 12...
Nc6 {[%clk 0:02:34.9]} 13. Nf3 {[%clk 0:02:14.2]} 13... Nd4 {[%clk 0:02:28.7]}
14. b4 {[%clk 0:01:46.4]} 14... Nxf3+ {[%clk 0:02:25.1]} 15. gxf3 {[%clk
0:01:46.6]} 15... Qd4 {[%clk 0:02:06.3]} 16. f4 {[%clk 0:01:44.4]} 16... h6
{[%clk 0:01:55]} 17. Bxg6 {[%clk 0:01:42.5]} 17... fxg6 {[%clk 0:01:51.7]} 18.
Qxg6 {[%clk 0:01:25.8]} 18... hxg5 {[%clk 0:01:51.1]} 19. Rad1 {[%clk
0:01:17.3]} 19... Qxf4 {[%clk 0:01:44]} 20. Rd3 {[%clk 0:01:17.3]} 20... Qf5
{[%clk 0:01:37.9]} 21. Qh5 {[%clk 0:01:16.3]} 21... g4 {[%clk 0:01:35.9]} 22.
Qh4 {[%clk 0:01:16]} 22... Bd7 {[%clk 0:01:32.6]} 23. Rg3 {[%clk 0:01:14.9]}
23... Bb5 {[%clk 0:01:31.5]} 24. Ra1 {[%clk 0:01:11.7]} 24... Qxf2+ {[%clk
0:01:29.4]} 25. Kh1 {[%clk 0:01:11.9]} 25... Be2 {[%clk 0:01:27.1]} 0-1

[Event "*** SCC Grand Prix: Titled Tuesday Blitz"]
[Site "Chess.com"]
[Date "2020.10.13"]
[Round "2"]
[White "Zhigalko_Sergei"]
[Black "thedjoker98"]
[Result "1-0"]
[WhiteElo "2927"]
[BlackElo "2590"]
[TimeControl "180+1"]
[EndTime "10:14:47 PDT"]
[Termination "Zhigalko_Sergei won by resignation"]

1. e4 {[%clk 0:03:00.9]} 1... e5 {[%clk 0:03:00.1]} 2. Nf3 {[%clk 0:03:00.6]}
2... Nc6 {[%clk 0:02:59.3]} 3. Bb5 {[%clk 0:03:00.6]} 3... g6 {[%clk 0:02:59.4]}
4. O-O {[%clk 0:03:00.3]} 4... Bg7 {[%clk 0:02:59.6]} 5. Re1 {[%clk 0:03:00.2]}
5... Nge7 {[%clk 0:02:57.6]} 6. c3 {[%clk 0:03:00.3]} 6... a6 {[%clk 0:02:57.8]}
7. Ba4 {[%clk 0:02:59.6]} 7... O-O {[%clk 0:02:57.5]} 8. d4 {[%clk 0:02:56.8]}
8... exd4 {[%clk 0:02:58.4]} 9. cxd4 {[%clk 0:02:56.8]} 9... b5 {[%clk
0:02:58.7]} 10. Bc2 {[%clk 0:02:56.6]} 10... d6 {[%clk 0:02:58.8]} 11. h3 {[%clk
0:02:56.4]} 11... Bb7 {[%clk 0:02:58.5]} 12. Nc3 {[%clk 0:02:56.5]} 12... Na5
{[%clk 0:02:57.3]} 13. Bf4 {[%clk 0:02:48.4]} 13... Rc8 {[%clk 0:02:53.5]} 14.
Qe2 {[%clk 0:02:27.3]} 14... Nc4 {[%clk 0:02:28.4]} 15. a4 {[%clk 0:02:24.3]}
15... Bc6 {[%clk 0:02:07.9]} 16. b3 {[%clk 0:02:04.4]} 16... Na3 {[%clk
0:02:02.7]} 17. Rxa3 {[%clk 0:01:50.2]} 17... b4 {[%clk 0:02:03.1]} 18. Raa1
{[%clk 0:01:50.8]} 18... bxc3 {[%clk 0:02:03.4]} 19. Qxa6 {[%clk 0:01:51.4]}
19... f5 {[%clk 0:01:59.7]} 20. Ng5 {[%clk 0:01:23.6]} 20... Qd7 {[%clk
0:01:54.8]} 21. d5 {[%clk 0:01:17.8]} 21... fxe4 {[%clk 0:01:37.1]} 22. dxc6
{[%clk 0:01:16.6]} 22... Qf5 {[%clk 0:01:36.8]} 23. Rxe4 {[%clk 0:01:01.6]}
23... d5 {[%clk 0:01:31.1]} 24. Rxe7 {[%clk 0:01:01.6]} 24... Qxf4 {[%clk
0:01:27.9]} 25. Rxg7+ {[%clk 0:01:01]} 1-0

[Event "*** SCC Grand Prix: Titled Tuesday Blitz"]
[Site "Chess.com"]
[Date "2020.10.13"]
[Round "2"]
[White "GHANDEEVAM2003"]
[Black "Ranindu2003"]
[Result "1-0"]
[WhiteElo "3064"]
[BlackElo "2622"]
[TimeControl "180+1"]
[EndTime "10:14:49 PDT"]
[Termination "GHANDEEVAM2003 won by resignation"]

1. c4 {[%clk 0:03:00.9]} 1... e6 {[%clk 0:02:59.8]} 2. Nf3 {[%clk 0:03:00.2]}
2... d5 {[%clk 0:03:00.1]} 3. b3 {[%clk 0:03:00.2]} 3... Nf6 {[%clk 0:02:59.2]}
4. Bb2 {[%clk 0:03:00.6]} 4... g6 {[%clk 0:02:59.7]} 5. g3 {[%clk 0:02:57.6]}
5... Bg7 {[%clk 0:02:59.6]} 6. Bg2 {[%clk 0:02:58.2]} 6... O-O {[%clk
0:03:00.3]} 7. O-O {[%clk 0:02:58.8]} 7... b6 {[%clk 0:03:01]} 8. d4 {[%clk
0:02:58.1]} 8... Bb7 {[%clk 0:03:00.6]} 9. Nbd2 {[%clk 0:02:57.1]} 9... Nbd7
{[%clk 0:02:58.8]} 10. Qc2 {[%clk 0:02:57.4]} 10... c5 {[%clk 0:02:51.8]} 11.
Rac1 {[%clk 0:02:51.5]} 11... Rc8 {[%clk 0:02:49.9]} 12. dxc5 {[%clk 0:02:48.8]}
12... bxc5 {[%clk 0:02:45.5]} 13. cxd5 {[%clk 0:02:47.6]} 13... exd5 {[%clk
0:02:45.7]} 14. e3 {[%clk 0:02:45.4]} 14... Re8 {[%clk 0:02:26.8]} 15. Rfd1
{[%clk 0:02:45.5]} 15... Qb6 {[%clk 0:02:25.9]} 16. Nb1 {[%clk 0:02:42.9]} 16...
c4 {[%clk 0:02:05.9]} 17. Bd4 {[%clk 0:02:42.1]} 17... Qa6 {[%clk 0:01:54.8]}
18. Qb2 {[%clk 0:02:39.2]} 18... Nh5 {[%clk 0:01:48.2]} 19. Bxg7 {[%clk
0:02:36.2]} 19... Nxg7 {[%clk 0:01:49.1]} 20. bxc4 {[%clk 0:02:36.8]} 20... Nb6
{[%clk 0:01:44.3]} 21. cxd5 {[%clk 0:02:32.6]} 21... Bxd5 {[%clk 0:01:44.2]} 22.
Rxc8 {[%clk 0:02:26.8]} 22... Rxc8 {[%clk 0:01:45.1]} 23. Nc3 {[%clk 0:02:27.3]}
23... Be6 {[%clk 0:01:38.1]} 24. Nd4 {[%clk 0:02:26.3]} 24... Qa5 {[%clk
0:01:31.8]} 25. Ne4 {[%clk 0:02:24.2]} 25... Qxa2 {[%clk 0:01:23.5]} 26. Qxa2
{[%clk 0:02:17.9]} 26... Bxa2 {[%clk 0:01:24.4]} 27. Ra1 {[%clk 0:02:18.4]}
27... Bc4 {[%clk 0:01:21.6]} 28. Rxa7 {[%clk 0:02:15.7]} 28... Bd3 {[%clk
0:01:21.9]} 29. Nf6+ {[%clk 0:02:13.1]} 29... Kf8 {[%clk 0:01:15.9]} 30. Nxh7+
{[%clk 0:02:12.6]} 30... Kg8 {[%clk 0:01:15.5]} 31. Nf6+ {[%clk 0:02:13.5]}
31... Kf8 {[%clk 0:01:16.1]} 32. h4 {[%clk 0:02:14.1]} 32... Nf5 {[%clk
0:01:16]} 33. Nxf5 {[%clk 0:02:09.6]} 33... Bxf5 {[%clk 0:01:16.9]} 34. g4
{[%clk 0:02:09.2]} 34... Bd3 {[%clk 0:01:16.5]} 35. Rb7 {[%clk 0:02:08.1]} 35...
Nc4 {[%clk 0:01:15.3]} 36. Bd5 {[%clk 0:02:04.9]} 36... Nd6 {[%clk 0:01:09.3]}
37. Rd7 {[%clk 0:02:04.2]} 37... Rc1+ {[%clk 0:01:08.6]} 38. Kh2 {[%clk
0:02:04]} 1-0

[Event "*** SCC Grand Prix: Titled Tuesday Blitz"]
[Site "Chess.com"]
[Date "2020.10.13"]
[Round "2"]
[White "Shield12"]
[Black "Kavyev_Ruslan"]
[Result "1-0"]
[WhiteElo "2839"]
[BlackElo "2560"]
[TimeControl "180+1"]
[EndTime "10:14:50 PDT"]
[Termination "Shield12 won by resignation"]

1. e4 {[%clk 0:03:00.6]} 1... c5 {[%clk 0:03:00]} 2. d4 {[%clk 0:03:01.5]} 2...
cxd4 {[%clk 0:03:00.2]} 3. Nf3 {[%clk 0:03:02.4]} 3... d6 {[%clk 0:02:59.8]} 4.
Nxd4 {[%clk 0:03:02]} 4... Nf6 {[%clk 0:03:00]} 5. Nc3 {[%clk 0:03:02.4]} 5...
a6 {[%clk 0:03:00.5]} 6. Bg5 {[%clk 0:03:02]} 6... Nbd7 {[%clk 0:03:00.5]} 7.
Bc4 {[%clk 0:03:01.9]} 7... Qb6 {[%clk 0:03:00.7]} 8. Bb3 {[%clk 0:03:01.9]}
8... e6 {[%clk 0:03:00.9]} 9. Qd2 {[%clk 0:03:02.1]} 9... Be7 {[%clk 0:03:01.1]}
10. O-O-O {[%clk 0:03:01.7]} 10... Nc5 {[%clk 0:03:01.6]} 11. f3 {[%clk
0:03:01.5]} 11... Qc7 {[%clk 0:02:56.9]} 12. a3 {[%clk 0:03:01.5]} 12... Bd7
{[%clk 0:02:51.5]} 13. Ba2 {[%clk 0:03:01.5]} 13... O-O {[%clk 0:02:44.4]} 14.
g4 {[%clk 0:03:00.8]} 14... b5 {[%clk 0:02:44.2]} 15. h4 {[%clk 0:02:54.9]}
15... Rab8 {[%clk 0:02:43.9]} 16. b4 {[%clk 0:02:53.9]} 16... Na4 {[%clk
0:02:33.6]} 17. Nxa4 {[%clk 0:02:53.9]} 17... bxa4 {[%clk 0:02:34.5]} 18. c3
{[%clk 0:02:54.1]} 18... Rfc8 {[%clk 0:02:33.9]} 19. Kb2 {[%clk 0:02:54.1]}
19... a5 {[%clk 0:02:30.9]} 20. Rc1 {[%clk 0:02:53]} 20... h6 {[%clk 0:02:22.7]}
21. Be3 {[%clk 0:02:50.6]} 21... d5 {[%clk 0:02:22.7]} 22. g5 {[%clk 0:02:48.1]}
22... Nh5 {[%clk 0:02:17]} 23. exd5 {[%clk 0:02:44.8]} 23... exd5 {[%clk
0:02:16.9]} 24. Bxd5 {[%clk 0:02:38.8]} 24... Ng3 {[%clk 0:01:56.5]} 25. Rhd1
{[%clk 0:02:36.8]} 25... hxg5 {[%clk 0:01:54.4]} 26. hxg5 {[%clk 0:02:35.2]}
26... Nf5 {[%clk 0:01:54.2]} 27. g6 {[%clk 0:02:29.9]} 27... Nd6 {[%clk
0:01:42.9]} 28. gxf7+ {[%clk 0:02:23.2]} 28... Kf8 {[%clk 0:01:43]} 29. Bf4
{[%clk 0:02:12.1]} 29... Rb6 {[%clk 0:01:32.4]} 30. Ka2 {[%clk 0:02:01.4]} 30...
Qd8 {[%clk 0:01:18]} 31. Ne6+ {[%clk 0:01:41]} 31... Bxe6 {[%clk 0:01:17.9]} 32.
Bxe6 {[%clk 0:01:41.9]} 32... Rcb8 {[%clk 0:01:14.1]} 33. Qh2 {[%clk 0:01:39.2]}
1-0

[Event "*** SCC Grand Prix: Titled Tuesday Blitz"]
[Site "Chess.com"]
[Date "2020.10.13"]
[Round "2"]
[White "Sueetin"]
[Black "Omk124"]
[Result "0-1"]
[WhiteElo "2257"]
[BlackElo "2479"]
[TimeControl "180+1"]
[EndTime "10:14:59 PDT"]
[Termination "Omk124 won by resignation"]

1. d4 {[%clk 0:03:00.9]} 1... Nf6 {[%clk 0:03:00]} 2. c4 {[%clk 0:03:00.8]} 2...
g6 {[%clk 0:03:00.2]} 3. Nc3 {[%clk 0:03:00.7]} 3... Bg7 {[%clk 0:03:00.5]} 4.
Nf3 {[%clk 0:02:59.3]} 4... O-O {[%clk 0:03:00.7]} 5. Bg5 {[%clk 0:02:59]} 5...
d6 {[%clk 0:02:58.6]} 6. e3 {[%clk 0:02:59.1]} 6... Nbd7 {[%clk 0:02:57.5]} 7.
Be2 {[%clk 0:02:59.2]} 7... h6 {[%clk 0:02:57.8]} 8. Bh4 {[%clk 0:02:59.3]} 8...
c5 {[%clk 0:02:57.9]} 9. d5 {[%clk 0:02:59.3]} 9... a6 {[%clk 0:02:57.6]} 10.
Nd2 {[%clk 0:02:56.9]} 10... Rb8 {[%clk 0:02:55.1]} 11. a4 {[%clk 0:02:55.7]}
11... Qb6 {[%clk 0:02:53.1]} 12. Qc2 {[%clk 0:02:49.3]} 12... Ne5 {[%clk
0:02:47.2]} 13. O-O {[%clk 0:02:42.9]} 13... Qb4 {[%clk 0:02:36.9]} 14. h3
{[%clk 0:02:13.5]} 14... b5 {[%clk 0:02:31.4]} 15. axb5 {[%clk 0:02:09.3]} 15...
axb5 {[%clk 0:02:31.6]} 16. Nxb5 {[%clk 0:01:58.4]} 16... Rxb5 {[%clk
0:02:28.4]} 17. cxb5 {[%clk 0:01:56.1]} 17... Qxh4 {[%clk 0:02:28.8]} 18. f4
{[%clk 0:01:44.8]} 18... Ned7 {[%clk 0:02:22.5]} 19. Bf3 {[%clk 0:01:17.4]}
19... Nb6 {[%clk 0:02:20]} 20. Qd3 {[%clk 0:00:55.2]} 20... Bb7 {[%clk
0:02:16.7]} 21. Ra7 {[%clk 0:00:52.1]} 21... Bxd5 {[%clk 0:02:15.8]} 22. e4
{[%clk 0:00:52.4]} 22... Be6 {[%clk 0:02:09.4]} 23. Rxe7 {[%clk 0:00:49.7]}
23... Qxf4 {[%clk 0:02:07.7]} 24. Rb7 {[%clk 0:00:42.7]} 24... Nfd7 {[%clk
0:02:07.3]} 25. Kh1 {[%clk 0:00:37.4]} 25... Be5 {[%clk 0:02:06.8]} 26. Kg1
{[%clk 0:00:36.3]} 26... Qh2+ {[%clk 0:02:03.9]} 27. Kf2 {[%clk 0:00:36.6]}
27... Bxh3 {[%clk 0:02:04.5]} 28. Rg1 {[%clk 0:00:29.5]} 28... Bd4+ {[%clk
0:02:03.7]} 29. Kf1 {[%clk 0:00:29.1]} 29... Qxg1+ {[%clk 0:02:01]} 30. Ke2
{[%clk 0:00:30]} 30... Bxg2 {[%clk 0:02:01.7]} 0-1

[Event "*** SCC Grand Prix: Titled Tuesday Blitz"]
[Site "Chess.com"]
[Date "2020.10.13"]
[Round "2"]
[White "Skatchkov_V"]
[Black "exoticprincess"]
[Result "0-1"]
[WhiteElo "2571"]
[BlackElo "2876"]
[TimeControl "180+1"]
[EndTime "10:15:00 PDT"]
[Termination "exoticprincess won by resignation"]

1. d4 {[%clk 0:03:00.9]} 1... d5 {[%clk 0:02:59]} 2. c4 {[%clk 0:03:01]} 2... c6
{[%clk 0:02:59.7]} 3. Nf3 {[%clk 0:03:01.2]} 3... Nf6 {[%clk 0:02:59.9]} 4. Nc3
{[%clk 0:03:00.5]} 4... dxc4 {[%clk 0:03:00]} 5. a4 {[%clk 0:02:58.3]} 5... a5
{[%clk 0:02:59.5]} 6. Ne5 {[%clk 0:02:57.9]} 6... Ng4 {[%clk 0:02:55.8]} 7. Nxc4
{[%clk 0:02:52.8]} 7... e5 {[%clk 0:02:55.7]} 8. e3 {[%clk 0:02:31]} 8... exd4
{[%clk 0:02:55.1]} 9. exd4 {[%clk 0:02:31.9]} 9... Bb4 {[%clk 0:02:53.7]} 10.
Be2 {[%clk 0:02:30.9]} 10... Nf6 {[%clk 0:02:50.7]} 11. O-O {[%clk 0:02:30.5]}
11... h6 {[%clk 0:02:47.2]} 12. Bf4 {[%clk 0:02:09]} 12... Be6 {[%clk
0:02:44.7]} 13. Qd3 {[%clk 0:01:46.6]} 13... O-O {[%clk 0:02:39.3]} 14. Qg3
{[%clk 0:01:46.2]} 14... Bxc4 {[%clk 0:01:30.3]} 15. Bxh6 {[%clk 0:01:43.1]}
15... Ne8 {[%clk 0:01:30.1]} 16. Bxc4 {[%clk 0:01:42.6]} 16... Qxd4 {[%clk
0:01:30.1]} 17. Bb3 {[%clk 0:01:32.2]} 17... Bd6 {[%clk 0:01:23.1]} 18. Qe3
{[%clk 0:01:07.7]} 18... Qh4 {[%clk 0:01:19.4]} 19. Bxf7+ {[%clk 0:00:52.5]}
19... Kxf7 {[%clk 0:01:11.5]} 0-1

[Event "*** SCC Grand Prix: Titled Tuesday Blitz"]
[Site "Chess.com"]
[Date "2020.10.13"]
[Round "2"]
[White "swimmerchess"]
[Black "AIROPITO7"]
[Result "1/2-1/2"]
[WhiteElo "2770"]
[BlackElo "2534"]
[TimeControl "180+1"]
[EndTime "10:15:08 PDT"]
[Termination "Game drawn by repetition"]

1. e4 {[%clk 0:03:00.9]} 1... e5 {[%clk 0:02:45.8]} 2. Nf3 {[%clk 0:03:01.2]}
2... Nc6 {[%clk 0:02:45.2]} 3. Bb5 {[%clk 0:03:01.8]} 3... a6 {[%clk 0:02:44.1]}
4. Ba4 {[%clk 0:03:02.4]} 4... Bc5 {[%clk 0:02:43.8]} 5. O-O {[%clk 0:03:03]}
5... Nf6 {[%clk 0:02:41.8]} 6. c3 {[%clk 0:03:03.3]} 6... Ba7 {[%clk 0:02:40]}
7. Re1 {[%clk 0:03:00.8]} 7... O-O {[%clk 0:02:39]} 8. d4 {[%clk 0:03:00.7]}
8... d6 {[%clk 0:02:39.2]} 9. Bg5 {[%clk 0:02:59.3]} 9... b5 {[%clk 0:02:37]}
10. Bb3 {[%clk 0:02:55.7]} 10... Bb7 {[%clk 0:02:37.2]} 11. Nbd2 {[%clk
0:02:54.6]} 11... h6 {[%clk 0:02:35.5]} 12. Be3 {[%clk 0:02:47.1]} 12... Ng4
{[%clk 0:02:34.3]} 13. Nf1 {[%clk 0:02:43.8]} 13... Nxe3 {[%clk 0:02:32.6]} 14.
Nxe3 {[%clk 0:02:44.7]} 14... a5 {[%clk 0:02:28.3]} 15. Bd5 {[%clk 0:02:41.9]}
15... Rb8 {[%clk 0:02:22.1]} 16. Nf5 {[%clk 0:02:35.9]} 16... Ne7 {[%clk
0:02:16.1]} 17. Bxb7 {[%clk 0:02:35.6]} 17... Rxb7 {[%clk 0:02:16]} 18. N3h4
{[%clk 0:02:32.4]} 18... Nxf5 {[%clk 0:02:13.3]} 19. Nxf5 {[%clk 0:02:32.4]}
19... Kh7 {[%clk 0:02:13.3]} 20. Qh5 {[%clk 0:02:25.6]} 20... Qf6 {[%clk
0:02:11.7]} 21. Re3 {[%clk 0:02:23.2]} 21... exd4 {[%clk 0:02:09.8]} 22. Rg3
{[%clk 0:02:23.1]} 22... Rg8 {[%clk 0:02:03.9]} 23. Rf3 {[%clk 0:02:16.1]} 23...
dxc3 {[%clk 0:02:02.1]} 24. bxc3 {[%clk 0:02:05.8]} 24... b4 {[%clk 0:02:02.1]}
25. Nxh6 {[%clk 0:01:48.5]} 25... Qxh6 {[%clk 0:02:00.4]} 26. Qxf7 {[%clk
0:01:49.1]} 26... bxc3 {[%clk 0:01:55.5]} 27. Rh3 {[%clk 0:01:47.9]} 27... Qxh3
{[%clk 0:01:53.4]} 28. gxh3 {[%clk 0:01:48.8]} 28... Rgb8 {[%clk 0:01:50.7]} 29.
Rc1 {[%clk 0:01:43.7]} 29... Rb1 {[%clk 0:01:45.6]} 30. Qf5+ {[%clk 0:01:02.1]}
30... Kh8 {[%clk 0:01:29]} 31. Qh5+ {[%clk 0:01:01.1]} 31... Kg8 {[%clk
0:01:27.8]} 32. Qd5+ {[%clk 0:01:02]} 32... Kh7 {[%clk 0:01:27.9]} 33. Qh5+
{[%clk 0:01:02]} 33... Kg8 {[%clk 0:01:28.1]} 34. Qd5+ {[%clk 0:01:02.9]} 34...
Kh7 {[%clk 0:01:28.4]} 35. Qh5+ {[%clk 0:01:03.8]} 35... Kg8 {[%clk 0:01:28.6]}
1/2-1/2

[Event "*** SCC Grand Prix: Titled Tuesday Blitz"]
[Site "Chess.com"]
[Date "2020.10.13"]
[Round "2"]
[White "Alexander_Moskalenko"]
[Black "TotsukaBlade"]
[Result "1-0"]
[WhiteElo "2818"]
[BlackElo "2427"]
[TimeControl "180+1"]
[EndTime "10:15:11 PDT"]
[Termination "Alexander_Moskalenko won by resignation"]

1. e4 {[%clk 0:02:57.9]} 1... e5 {[%clk 0:02:59.9]} 2. Nf3 {[%clk 0:02:57.1]}
2... Nc6 {[%clk 0:03:00.3]} 3. Bb5 {[%clk 0:02:57.7]} 3... a6 {[%clk 0:03:00.1]}
4. Bxc6 {[%clk 0:02:58.3]} 4... dxc6 {[%clk 0:03:00]} 5. Nc3 {[%clk 0:02:59]}
5... Bd6 {[%clk 0:02:59]} 6. d4 {[%clk 0:02:59.2]} 6... Qe7 {[%clk 0:02:49.5]}
7. dxe5 {[%clk 0:02:57.6]} 7... Bxe5 {[%clk 0:02:49.6]} 8. Nxe5 {[%clk
0:02:58.5]} 8... Qxe5 {[%clk 0:02:49.8]} 9. Be3 {[%clk 0:02:58.1]} 9... Nf6
{[%clk 0:02:35.7]} 10. Qd4 {[%clk 0:02:57.4]} 10... Qxd4 {[%clk 0:02:30.6]} 11.
Bxd4 {[%clk 0:02:58.3]} 11... Be6 {[%clk 0:02:29.1]} 12. Bxf6 {[%clk 0:02:57.6]}
12... gxf6 {[%clk 0:02:29.2]} 13. f3 {[%clk 0:02:58.2]} 13... O-O-O {[%clk
0:02:28.7]} 14. Rd1 {[%clk 0:02:55.5]} 14... f5 {[%clk 0:02:18.9]} 15. e5 {[%clk
0:02:52.5]} 15... Rhg8 {[%clk 0:02:16.4]} 16. Kf2 {[%clk 0:02:52.1]} 16... Rd7
{[%clk 0:02:10.6]} 17. Rxd7 {[%clk 0:02:51.2]} 17... Kxd7 {[%clk 0:02:09.6]} 18.
g3 {[%clk 0:02:51.3]} 18... Ke7 {[%clk 0:02:07.7]} 19. Rd1 {[%clk 0:02:51.9]}
19... f6 {[%clk 0:02:07.6]} 20. exf6+ {[%clk 0:02:51.1]} 20... Kxf6 {[%clk
0:02:08.5]} 21. a3 {[%clk 0:02:50.7]} 21... Re8 {[%clk 0:01:42.7]} 22. Ne2
{[%clk 0:02:49.8]} 22... Re7 {[%clk 0:01:28.7]} 23. Nf4 {[%clk 0:02:48]} 23...
Rd7 {[%clk 0:01:24.7]} 24. Rxd7 {[%clk 0:02:46.3]} 24... Bxd7 {[%clk 0:01:25.2]}
25. Ke3 {[%clk 0:02:46.8]} 25... Ke5 {[%clk 0:01:25.8]} 26. Nd3+ {[%clk
0:02:46.3]} 26... Kf6 {[%clk 0:01:23.4]} 27. Kf4 {[%clk 0:02:45.4]} 27... b6
{[%clk 0:01:21.5]} 28. Ne5 {[%clk 0:02:46.3]} 28... Be8 {[%clk 0:01:20.2]} 29.
h4 {[%clk 0:02:46.5]} 29... c5 {[%clk 0:01:15]} 30. Nc4 {[%clk 0:02:44.9]} 30...
Bc6 {[%clk 0:01:11.9]} 31. Ne3 {[%clk 0:02:45.8]} 31... Bb7 {[%clk 0:01:00.2]}
32. Nxf5 {[%clk 0:02:43]} 32... Bxf3 {[%clk 0:01:00]} 33. Kxf3 {[%clk
0:02:43.8]} 33... Kxf5 {[%clk 0:01:00.5]} 34. g4+ {[%clk 0:02:44.4]} 34... Ke5
{[%clk 0:00:59]} 35. Ke3 {[%clk 0:02:43.4]} 35... b5 {[%clk 0:00:59.1]} 36. c3
{[%clk 0:02:43.5]} 36... a5 {[%clk 0:00:58.9]} 37. Kf3 {[%clk 0:02:44]} 37... c6
{[%clk 0:00:57.2]} 38. g5 {[%clk 0:02:42.6]} 38... Kf5 {[%clk 0:00:51.5]} 39.
Kg3 {[%clk 0:02:42.9]} 39... c4 {[%clk 0:00:39.6]} 40. Kf3 {[%clk 0:02:42.1]}
40... c5 {[%clk 0:00:37]} 41. Kg3 {[%clk 0:02:39.6]} 41... b4 {[%clk 0:00:22.7]}
42. a4 {[%clk 0:02:39.2]} 42... bxc3 {[%clk 0:00:16.2]} 43. bxc3 {[%clk
0:02:38.5]} 43... Ke4 {[%clk 0:00:15.7]} 44. h5 {[%clk 0:02:39]} 44... Kd3
{[%clk 0:00:16.3]} 45. g6 {[%clk 0:02:39.2]} 45... Kxc3 {[%clk 0:00:17.2]} 46.
gxh7 {[%clk 0:02:39.3]} 46... Kb3 {[%clk 0:00:17.9]} 47. h8=Q {[%clk 0:02:40.2]}
47... c3 {[%clk 0:00:18.8]} 48. h6 {[%clk 0:02:39.9]} 48... c2 {[%clk
0:00:19.2]} 49. Qa1 {[%clk 0:02:40.5]} 1-0

[Event "*** SCC Grand Prix: Titled Tuesday Blitz"]
[Site "Chess.com"]
[Date "2020.10.13"]
[Round "2"]
[White "SamuelGhimpu2003"]
[Black "TigrVShlyape"]
[Result "0-1"]
[WhiteElo "2559"]
[BlackElo "2839"]
[TimeControl "180+1"]
[EndTime "10:15:15 PDT"]
[Termination "TigrVShlyape won by resignation"]

1. d4 {[%clk 0:03:00.9]} 1... Nf6 {[%clk 0:02:55.8]} 2. c4 {[%clk 0:02:56.7]}
2... g6 {[%clk 0:02:51.3]} 3. Nc3 {[%clk 0:02:56.2]} 3... Bg7 {[%clk 0:02:47.1]}
4. Nf3 {[%clk 0:02:44.2]} 4... d6 {[%clk 0:02:39.6]} 5. g3 {[%clk 0:02:43.8]}
5... O-O {[%clk 0:02:38.8]} 6. Bg2 {[%clk 0:02:43.7]} 6... Nc6 {[%clk
0:02:38.7]} 7. O-O {[%clk 0:02:43.2]} 7... a5 {[%clk 0:02:39.2]} 8. Re1 {[%clk
0:02:24.6]} 8... e5 {[%clk 0:02:34.5]} 9. d5 {[%clk 0:02:01.4]} 9... Nb8 {[%clk
0:02:31.8]} 10. e4 {[%clk 0:01:53.3]} 10... Nbd7 {[%clk 0:02:30.4]} 11. h3
{[%clk 0:01:52]} 11... Nc5 {[%clk 0:02:29.4]} 12. Be3 {[%clk 0:01:48.8]} 12...
Ncxe4 {[%clk 0:02:23.1]} 13. Na4 {[%clk 0:01:36.7]} 13... b6 {[%clk 0:02:17.4]}
14. a3 {[%clk 0:01:35.4]} 14... Bd7 {[%clk 0:02:14.8]} 15. Qc2 {[%clk
0:01:29.5]} 15... Nc5 {[%clk 0:02:13.9]} 16. Nxc5 {[%clk 0:01:27.6]} 16... bxc5
{[%clk 0:02:13.7]} 17. Bd2 {[%clk 0:01:23.4]} 17... a4 {[%clk 0:02:13]} 18. Bc3
{[%clk 0:01:22.7]} 18... Nh5 {[%clk 0:02:09]} 19. h4 {[%clk 0:01:07.1]} 19... h6
{[%clk 0:02:07.5]} 20. Qe2 {[%clk 0:00:38.2]} 20... f5 {[%clk 0:02:04.6]} 21.
Nd2 {[%clk 0:00:38.7]} 21... e4 {[%clk 0:01:58.8]} 22. Bxg7 {[%clk 0:00:38]}
22... Kxg7 {[%clk 0:01:58]} 23. Nf1 {[%clk 0:00:37.6]} 23... Qf6 {[%clk
0:01:55.8]} 24. Rab1 {[%clk 0:00:35.8]} 24... Rab8 {[%clk 0:01:54.6]} 25. Qc2
{[%clk 0:00:27.4]} 25... Rb6 {[%clk 0:01:44.6]} 26. Nd2 {[%clk 0:00:27.1]} 26...
Rfb8 {[%clk 0:01:41.9]} 0-1